fUSD/lending_fUSD_20251101
["ID","MTS","AMOUNT","RATE_DAILY","PERIOD"]
[392829742,1762012243924,-151.0,0.00014994,2]
[392829743,1762012243933,-151.0,0.00014994,2]
[392829744,1762012243942,-224.209457,0.00014994,2]
[392829745,1762012243950,-151.0,0.00014994,2]
[392829746,1762012243959,-151.0,0.00014994,2]
[392829747,1762012243969,-224.209457,0.00014994,2]
[392829748,1762012243978,-6652.0,0.00014994,2]
[392829749,1762012243986,-169.0,0.00014998,2]
[392829750,1762012243995,-150.0,0.00014998,2]
[392829751,1762012244004,-150.832,0.00014998,2]
[392829752,1762012244014,-150.548,0.00014998,2]
[392829753,1762012244023,-150.0,0.00014998,2]
[392829754,1762012244032,-209.622,0.00014998,2]
[392829755,1762012244041,-150.0,0.00014998,2]
[392829756,1762012244050,-152.104,0.00014998,2]
[392829757,1762012244059,-151.0,0.00014998,2]
[392829758,1762012244068,-1000.0,0.00014999,2]
[392829759,1762012244077,-155.0,0.00014999,2]
[392829760,1762012244086,-159.804998,0.00014999,2]
[392829761,1762012244096,-151.0,0.00014999,2]
[392829762,1762012244105,-151.0,0.00014999,2]
[392829763,1762012244113,-151.0,0.00014999,2]
[392829764,1762012244122,-151.0,0.00014999,2]
[392829765,1762012244131,-500.0,0.00014999,2]
[392829766,1762012244139,-500.0,0.00014999,2]
[392829767,1762012244148,-500.0,0.00014999,2]
[392829768,1762012244157,-500.0,0.00014999,2]
[392829769,1762012244166,-500.0,0.00014999,2]
[392829770,1762012244175,-500.0,0.00014999,2]
[392829771,1762012244183,-500.0,0.00014999,2]
[392829772,1762012244192,-500.0,0.00014999,2]
[392829773,1762012244201,-500.0,0.00014999,2]
[392829774,1762012244210,-500.0,0.00014999,2]
[392829775,1762012244219,-204.06144706,0.00014999,2]
[392829776,1762012244228,-1000.0,0.00014999,2]
[392829777,1762012244237,-2343.0,0.00015,2]
[392829778,1762012244246,-678557.6379535,0.00015,2]
[392829779,1762012244264,-1637.63015107,0.00015,2]
[392829780,1762012244274,-1119.69160082,0.00015,2]
[392829781,1762012244285,-2981.511028,0.00015,2]
[392829782,1762012244296,-404.8,0.00015,2]
[392829783,1762012244610,-56644.95372636,0.00015,2]
[392829784,1762012244675,-151.0,0.00014985,2]
[392829785,1762012244684,-37413.77322237,0.00015,2]
[392829786,1762012244743,600.0,0.00014795,2]
[392829787,1762012244774,600.0,0.00014795,2]
[392829788,1762012244804,524.91398436,0.00014795,2]
[392829789,1762012244824,75.08601564,0.00014795,2]
[392829790,1762012244883,600.0,0.00014795,2]
[392829791,1762012245158,600.0,0.00014795,2]
[392829792,1762012245439,600.0,0.00014795,2]
[392829793,1762012245716,600.0,0.00014795,2]
[392829804,1762012246021,600.0,0.00014795,2]
[392829805,1762012246187,-259.0,0.00014994,2]
[392829806,1762012246195,-122045.42754033,0.00015,2]
[392829816,1762012297189,11924.91398436,0.000148,2]
[392829817,1762012297211,15000.0,0.000148,2]
[392829818,1762012297232,15000.0,0.000148,2]
[392829819,1762012297253,15000.0,0.000148,2]
[392829820,1762012297273,15000.0,0.000148,2]
[392829821,1762012297292,15000.0,0.000148,2]
[392829822,1762012297312,15000.0,0.000148,2]
[392829823,1762012297334,15000.0,0.000148,2]
[392829824,1762012297353,15000.0,0.000148,2]
[392829825,1762012297372,15000.0,0.000148,2]
[392829826,1762012297393,15000.0,0.000148,2]
[392829827,1762012297412,15000.0,0.000148,2]
[392829828,1762012297432,15000.0,0.000148,2]
[392829829,1762012297452,15000.0,0.000148,2]
[392829830,1762012297474,15000.0,0.000148,2]
[392829831,1762012297494,15000.0,0.000148,2]
[392829832,1762012297517,15000.0,0.000148,2]
[392829833,1762012297536,15000.0,0.000148,2]
[392829834,1762012297555,15000.0,0.000148,2]
[392829835,1762012297576,15000.0,0.000148,2]
[392829836,1762012297598,15000.0,0.000148,2]
[392829837,1762012297619,15000.0,0.000148,2]
[392829838,1762012297638,15000.0,0.000148,2]
[392829839,1762012297660,15000.0,0.000148,2]
[392829840,1762012297680,15000.0,0.000148,2]
[392829841,1762012297699,15000.0,0.000148,2]
[392829842,1762012297718,15000.0,0.000148,2]
[392829843,1762012297740,15000.0,0.000148,2]
[392829844,1762012297760,15000.0,0.000148,2]
[392829845,1762012297780,15000.0,0.000148,2]
[392829846,1762012297799,15000.0,0.000148,2]
[392829847,1762012297820,15000.0,0.000148,2]
[392829848,1762012297839,15000.0,0.000148,2]
[392829849,1762012297858,15000.0,0.000148,2]
[392829850,1762012297877,15000.0,0.000148,2]
[392829851,1762012297896,15000.0,0.000148,2]
[392829852,1762012297915,15000.0,0.000148,2]
[392829853,1762012297935,15000.0,0.000148,2]
[392829854,1762012297955,15000.0,0.000148,2]
[392829855,1762012297975,15000.0,0.000148,2]
[392829856,1762012297995,15000.0,0.000148,2]
[392829857,1762012298015,15000.0,0.000148,2]
[392829858,1762012298036,15000.0,0.000148,2]
[392829859,1762012298056,15000.0,0.000148,2]
[392829860,1762012298077,15000.0,0.000148,2]
[392829861,1762012298097,15000.0,0.000148,2]
[392829862,1762012298117,15000.0,0.000148,2]
[392829863,1762012298137,15000.0,0.000148,2]
[392829864,1762012298157,15000.0,0.000148,2]
[392829865,1762012298191,15000.0,0.000148,2]
[392829866,1762012298213,15000.0,0.000148,2]
[392829867,1762012298234,15000.0,0.000148,2]
[392829868,1762012298254,15000.0,0.000148,2]
[392829869,1762012298276,15000.0,0.000148,2]
[392829870,1762012298297,15000.0,0.000148,2]
[392829871,1762012298318,15000.0,0.000148,2]
[392829872,1762012298340,15000.0,0.000148,2]
[392829873,1762012298360,15000.0,0.000148,2]
[392829874,1762012298380,15000.0,0.000148,2]
[392829875,1762012298401,15000.0,0.000148,2]
[392829876,1762012298424,15000.0,0.000148,2]
[392829877,1762012298447,15000.0,0.000148,2]
[392829878,1762012298468,15000.0,0.000148,2]
[392829879,1762012298488,15000.0,0.000148,2]
[392829880,1762012298508,15000.0,0.000148,2]
[392829881,1762012298529,15000.0,0.000148,2]
[392829882,1762012298549,15000.0,0.000148,2]
[392829883,1762012298572,50000.0,0.000148,2]
[392829884,1762012310143,-8858.65909418,0.000148,2]
[392829885,1762012310596,-10000.01,0.000148,2]
[392829886,1762012310705,-10000.01,0.000148,2]
[392829887,1762012310821,-10000.01,0.000148,2]
[392829888,1762012310956,-10000.01,0.000148,2]
[392829889,1762012311076,-10000.01,0.000148,2]
[392829890,1762012312694,-10000.01,0.000148,2]
[392829891,1762012312815,-10000.01,0.000148,2]
[392829892,1762012313128,-10000.01,0.000148,2]
[392829893,1762012313143,-10000.01,0.000148,2]
[392829894,1762012321759,-300.0,0.00014799,2]
[392829895,1762012321798,-9400.01,0.000148,2]
[392829896,1762012321906,-10000.01,0.000148,2]
[392829897,1762012322032,-10000.01,0.000148,2]
[392829898,1762012322488,-10000.01,0.000148,2]
[392829899,1762012322629,-10000.01,0.000148,2]
[392829900,1762012331076,-10000.01,0.000148,2]
[392829901,1762012331182,-10000.01,0.000148,2]
[392829902,1762012331326,-10000.01,0.000148,2]
[392829903,1762012331469,-10000.01,0.000148,2]
[392829904,1762012331638,-10000.01,0.000148,2]
[392829905,1762012336950,-666.0,0.00014799,2]
[392829906,1762012336987,-8668.01,0.000148,2]
[392829907,1762012337065,-10000.01,0.000148,2]
[392829908,1762012337220,-10000.01,0.000148,2]
[392829909,1762012337323,-10000.01,0.000148,2]
[392829910,1762012337443,-10000.01,0.000148,2]
[392829911,1762012340019,-10000.01,0.000148,2]
[392829912,1762012340173,-151.0,0.00014797,2]
[392829913,1762012340223,-9698.01,0.000148,2]
[392829914,1762012340317,-10000.01,0.000148,2]
[392829915,1762012340437,-10000.01,0.000148,2]
[392829916,1762012346195,-185.16701361,0.0001465,2]
[392829917,1762012346226,-490.03863161,0.00014751,2]
[392829918,1762012346280,-8649.59870956,0.000148,2]
[392829919,1762012346432,-10000.01,0.000148,2]
[392829920,1762012346561,-10000.01,0.000148,2]
[392829921,1762012346687,-10000.01,0.000148,2]
[392829922,1762012346807,-10000.01,0.000148,2]
[392829923,1762012349127,-10000.01,0.000148,2]
[392829924,1762012349259,-10000.01,0.000148,2]
[392829925,1762012349413,-10000.01,0.000148,2]
[392829926,1762012349589,-10000.01,0.000148,2]
[392829927,1762012361286,-1200.0,0.00014799,2]
[392829928,1762012361324,-7600.01,0.000148,2]
[392829929,1762012361401,-10000.01,0.000148,2]
[392829930,1762012361544,-10000.01,0.000148,2]
[392829931,1762012361702,-10000.01,0.000148,2]
[392829932,1762012361859,-10000.01,0.000148,2]
[392829933,1762012373539,-194.2924615,0.00014799,2]
[392829934,1762012373577,-246.49676683,0.00014799,2]
[392829935,1762012373646,-9118.43154334,0.000148,2]
[392829936,1762012373768,-10000.01,0.000148,2]
[392829937,1762012373893,-10000.01,0.000148,2]
[392829938,1762012374031,-10000.01,0.000148,2]
[392829939,1762012374172,-10000.01,0.000148,2]
[392829940,1762012385545,-300.0,0.00014798,2]
[392829941,1762012385582,-500.0,0.00014799,2]
[392829942,1762012385612,-500.0,0.00014799,2]
[392829943,1762012385647,-500.0,0.00014799,2]
[392829944,1762012385691,-500.0,0.00014799,2]
[392829945,1762012385729,-500.0,0.00014799,2]
[392829946,1762012385764,-500.0,0.00014799,2]
[392829947,1762012385797,-500.0,0.00014799,2]
[392829948,1762012385831,-500.0,0.00014799,2]
[392829949,1762012385864,-500.0,0.00014799,2]
[392829950,1762012385897,-49.90514336,0.00014799,2]
[392829951,1762012386023,-300.19971328,0.00014799,2]
[392829952,1762012386060,-500.0,0.00014799,2]
[392829953,1762012386096,-500.0,0.00014799,2]
[392829954,1762012386133,-500.0,0.00014799,2]
[392829955,1762012386170,-500.0,0.00014799,2]
[392829956,1762012386204,-500.0,0.00014799,2]
[392829957,1762012386515,-300.19971328,0.000148,2]
[392829958,1762012386531,-4399.61057344,0.000148,2]
[392829959,1762012386563,-150.0,0.00014799,2]
[392829960,1762012386573,-9850.01,0.000148,2]
[392829961,1762012386595,-10000.01,0.000148,2]
[392829962,1762012386616,-10000.01,0.000148,2]
[392829963,1762012391621,-500.0,0.00014799,2]
[392829964,1762012391658,-500.0,0.00014799,2]
[392829965,1762012391693,-500.0,0.00014799,2]
[392829966,1762012391730,-500.0,0.00014799,2]
[392829967,1762012391766,-500.0,0.00014799,2]
[392829968,1762012391800,-500.0,0.00014799,2]
[392829969,1762012391834,-500.0,0.00014799,2]
[392829970,1762012391869,-500.0,0.00014799,2]
[392829971,1762012391902,-500.0,0.00014799,2]
[392829972,1762012391936,-500.0,0.00014799,2]
[392829973,1762012392072,-500.0,0.00014799,2]
[392829974,1762012392105,-500.0,0.00014799,2]
[392829975,1762012392137,-500.0,0.00014799,2]
[392829976,1762012392170,-500.0,0.00014799,2]
[392829977,1762012392203,-500.0,0.00014799,2]
[392829978,1762012392235,-500.0,0.00014799,2]
[392829979,1762012392268,-503.64072483,0.00014799,2]
[392829980,1762012392305,-500.0,0.00014799,2]
[392829981,1762012392340,-500.0,0.00014799,2]
[392829982,1762012392380,-492.72855034,0.00014799,2]
[392829983,1762012392466,-7.27144966,0.00014799,2]
[392829984,1762012392500,-500.0,0.00014799,2]
[392829985,1762012392536,-500.0,0.00014799,2]
[392829986,1762012392572,-500.0,0.00014799,2]
[392829987,1762012392607,-500.0,0.00014799,2]
[392829988,1762012392640,-500.0,0.00014799,2]
[392829989,1762012392679,-500.0,0.00014799,2]
[392829990,1762012392714,-500.0,0.00014799,2]
[392829991,1762012392752,-500.0,0.00014799,2]
[392829992,1762012392785,-500.0,0.00014799,2]
[392829993,1762012392818,-485.46710068,0.00014799,2]
[392829994,1762012392910,-14.53289932,0.00014799,2]
[392829995,1762012392943,-500.0,0.00014799,2]
[392829996,1762012392976,-500.0,0.00014799,2]
[392829997,1762012393563,-39.98797313,0.000148,2]
[392829998,1762012393580,-7970.94420136,0.000148,2]
[392829999,1762012393612,-10000.01,0.000148,2]
[392830000,1762012393628,-10000.01,0.000148,2]
[392830001,1762012397827,-10000.01,0.000148,2]
[392830002,1762012398021,-10000.01,0.000148,2]
[392830003,1762012398144,-10000.01,0.000148,2]
[392830004,1762012398299,-10000.01,0.000148,2]
[392830005,1762012398420,-10000.01,0.000148,2]
[392830006,1762012398556,-10000.01,0.000148,2]
[392830007,1762012400748,-10000.01,0.000148,2]
[392830008,1762012400873,-10000.01,0.000148,2]
[392830009,1762012401003,-10000.01,0.000148,2]
[392830010,1762012406791,-10000.01,0.000148,2]
[392830011,1762012406922,-10000.01,0.000148,2]
[392830012,1762012407097,-10000.01,0.000148,2]
[392830013,1762012407244,-10000.01,0.000148,2]
[392830014,1762012407374,-10000.01,0.000148,2]
[392830015,1762012407509,-10000.01,0.000148,2]
[392830016,1762012407687,-10000.01,0.000148,2]
[392830017,1762012409998,-10000.01,0.000148,2]
[392830018,1762012410210,-10000.01,0.000148,2]
[392830019,1762012416164,-10000.01,0.000148,2]
[392830020,1762012416190,-10000.01,0.000148,2]
[392830021,1762012416215,-10000.01,0.000148,2]
[392830022,1762012416356,-10000.01,0.000148,2]
[392830023,1762012416478,-10000.01,0.000148,2]
[392830024,1762012416585,-10000.01,0.000148,2]
[392830025,1762012416721,-10000.01,0.000148,2]
[392830026,1762012423046,485.0,0.0001447,2]
[392830027,1762012424384,-500.0,0.00014799,2]
[392830028,1762012424418,-500.0,0.00014799,2]
[392830029,1762012424453,-500.0,0.00014799,2]
[392830030,1762012424488,-500.0,0.00014799,2]
[392830031,1762012424520,-500.0,0.00014799,2]
[392830032,1762012424555,-500.0,0.00014799,2]
[392830033,1762012424587,-500.0,0.00014799,2]
[392830034,1762012424741,-3000.01,0.000148,2]
[392830035,1762012424761,-10000.01,0.000148,2]
[392830036,1762012424790,-10000.01,0.000148,2]
[392830037,1762012431284,-485.0,0.00014729,2]
[392830038,1762012431321,-566.35626173,0.00014799,2]
[392830039,1762012431380,-7897.29747654,0.000148,2]
[392830040,1762012431501,-10000.01,0.000148,2]
[392830041,1762012431632,-10000.01,0.000148,2]
[392830042,1762012431768,-10000.01,0.000148,2]
[392830043,1762012431875,-10000.01,0.000148,2]
[392830044,1762012432018,-10000.01,0.000148,2]
[392830045,1762012432167,-10000.01,0.000148,2]
[392830046,1762012440249,-485.0,0.00014596,2]
[392830047,1762012440293,-9030.01,0.000148,2]
[392830048,1762012440355,-10000.01,0.000148,2]
[392830049,1762012440540,-10000.01,0.000148,2]
[392830050,1762012446309,-485.0,0.00014667,2]
[392830051,1762012446345,-150.0,0.00014799,2]
[392830052,1762012446376,-241.0,0.00014799,2]
[392830053,1762012446450,-8248.01,0.000148,2]
[392830054,1762012446501,-10000.01,0.000148,2]
[392830055,1762012447328,-10000.01,0.000148,2]
[392830056,1762012447443,-10000.01,0.000148,2]
[392830057,1762012447573,-10000.01,0.000148,2]
[392830058,1762012447697,-10000.01,0.000148,2]
[392830059,1762012455801,1278.593362,0.00014698,2]
[392830060,1762012457732,3071.39955268,0.00014758,2]
[392830061,1762012467645,156.454405,0.00014758,2]
[392830062,1762012480063,-505.08327487,0.00014773,2]
[392830063,1762012480094,-3071.39955261,0.00014774,2]
[392830064,1762012480259,-3071.39955261,0.0001479,2]
[392830065,1762012480289,-155.46121285,0.00014797,2]
[392830066,1762012480320,-300.0,0.00014799,2]
[392830067,1762012480430,-1286.88549451,0.000148,2]
[392830068,1762012480457,-10000.01,0.000148,2]
[392830069,1762012480544,-10000.01,0.000148,2]
[392830070,1762012480696,-10000.01,0.000148,2]
[392830071,1762012480829,-10000.01,0.000148,2]
[392830072,1762012480932,-10000.01,0.000148,2]
[392830073,1762012481041,-10000.01,0.000148,2]
[392830074,1762012481129,156.73388431,0.00014758,2]
[392830075,1762012481197,-9843.27611569,0.000148,2]
[392830076,1762012481309,-10000.01,0.000148,2]
[392830077,1762012482989,-10000.01,0.000148,2]
[392830078,1762012486067,-10000.01,0.000148,2]
[392830079,1762012486174,-156.73388431,0.00014794,2]
[392830080,1762012486217,-9686.54223138,0.000148,2]
[392830081,1762012486762,-10000.01,0.000148,2]
[392830082,1762012486891,-10000.01,0.000148,2]
[392830083,1762012486996,-10000.01,0.000148,2]
[392830084,1762012487107,-10000.01,0.000148,2]
[392830085,1762012487436,-10000.01,0.000148,2]
[392830086,1762012487670,1405.83,0.00013988,2]
[392830087,1762012487765,-10000.01,0.000148,2]
[392830088,1762012488128,-10000.01,0.000148,2]
[392830089,1762012492078,6966.14236254,0.00014705,2]
[392830090,1762012496956,3033.86763746,0.00014727,2]
[392830091,1762012496983,3932.27472499,0.00014727,2]
[392830092,1762012501257,1200.0,0.00014799,2]
[392830093,1762012501989,4867.73527501,0.00014748,2]
[392830094,1762012502013,2098.40708744,0.00014748,2]
[392830095,1762012503119,300.0,0.00014799,2]
[392830096,1762012503547,300.0,0.00014799,2]
[392830097,1762012504994,-7301.60291256,0.000148,2]
[392830098,1762012505090,-10000.01,0.000148,2]
[392830099,1762012505210,-10000.01,0.000148,2]
[392830100,1762012505331,-10000.01,0.000148,2]
[392830101,1762012505485,-10000.01,0.000148,2]
[392830102,1762012505623,-10000.01,0.000148,2]
[392830103,1762012505793,-10000.01,0.000148,2]
[392830104,1762012510608,-3033.86763755,0.0001477,2]
[392830105,1762012510636,-3932.2747249,0.0001477,2]
[392830106,1762012510663,-10000.01,0.000148,2]
[392830107,1762012557120,893.66,0.00014002,2]
[392830108,1762012565615,-2500.0,0.00014785,2]
[392830109,1762012565685,-4106.35,0.00014792,2]
[392830110,1762012565880,-2859.79236245,0.00014792,2]
[392830111,1762012565911,-600.0,0.00014795,2]
[392830112,1762012565945,-600.0,0.00014795,2]
[392830113,1762012565977,-600.0,0.00014795,2]
[392830114,1762012566009,-80.4252751,0.00014795,2]
[392830115,1762012566105,-519.5747249,0.00014795,2]
[392830116,1762012566136,-600.0,0.00014795,2]
[392830117,1762012566166,-600.0,0.00014795,2]
[392830118,1762012566196,-600.0,0.00014795,2]
[392830119,1762012566228,-600.0,0.00014795,2]
[392830120,1762012566358,-519.5747249,0.000148,2]
[392830121,1762012566375,-4160.8605502,0.000148,2]
[392830122,1762012566409,-10000.01,0.000148,2]
[392830123,1762012566438,-10000.01,0.000148,2]
[392830124,1762012566457,-10000.01,0.000148,2]
[392830125,1762012566536,-10000.01,0.000148,2]
[392830126,1762012566678,-10000.01,0.000148,2]
[392830127,1762012566810,-10000.01,0.000148,2]
[392830128,1762012568516,-10000.01,0.000148,2]
[392830129,1762012568659,-10000.01,0.000148,2]
[392830130,1762012574600,-600.0,0.00014795,2]
[392830131,1762012574631,-600.0,0.00014795,2]
[392830132,1762012574662,-600.0,0.00014795,2]
[392830133,1762012574929,-600.0,0.00014795,2]
[392830134,1762012574961,-600.0,0.00014795,2]
[392830135,1762012574990,-600.0,0.00014795,2]
[392830136,1762012575020,-600.0,0.00014795,2]
[392830137,1762012575130,-600.0,0.00014795,2]
[392830138,1762012575276,-1000.01,0.000148,2]
[392830139,1762012575302,-600.0,0.000148,2]
[392830140,1762012575318,-8800.01,0.000148,2]
[392830141,1762012575346,-10000.01,0.000148,2]
[392830142,1762012575372,-10000.01,0.000148,2]
[392830143,1762012575391,-10000.01,0.000148,2]
[392830144,1762012575418,-10000.01,0.000148,2]
[392830145,1762012575436,-10000.01,0.000148,2]
[392830146,1762012575495,-10000.01,0.000148,2]
[392830147,1762012626884,694.9,0.00031507,120]
[392830148,1762012634796,5864.0,0.00014626,2]
[392830149,1762012642548,419.0,0.00014619,2]
[392830150,1762012656427,-500.0,0.00014799,2]
[392830151,1762012656459,-300.0,0.00014799,2]
[392830152,1762012656492,-150.0,0.00014799,2]
[392830153,1762012656619,-1817.01,0.000148,2]
[392830154,1762012656648,-10000.01,0.000148,2]
[392830155,1762012656801,-10000.01,0.000148,2]
[392830156,1762012657053,-10000.01,0.000148,2]
[392830157,1762012657171,-10000.01,0.000148,2]
[392830158,1762012657505,-10000.01,0.000148,2]
[392830159,1762012657544,-10000.01,0.000148,2]
[392830160,1762012657577,-10000.01,0.000148,2]
[392830161,1762012657714,-10000.01,0.000148,2]
[392830162,1762012657825,-10000.01,0.000148,2]
[392830163,1762012659338,-10000.01,0.000148,2]
[392830164,1762012682456,4111.2171,0.000147,2]
[392830165,1762012683797,-450.0,0.00014999,5]
[392830166,1762012683851,-594.121394,0.00015,5]
[392830167,1762012683889,-612.265635,0.00015,5]
[392830168,1762012696198,-1200.0,0.00014799,2]
[392830169,1762012696272,-3488.7929,0.000148,2]
[392830170,1762012696298,-10000.01,0.000148,2]
[392830171,1762012696428,-10000.01,0.000148,2]
[392830172,1762012696569,-10000.01,0.000148,2]
[392830173,1762012696677,-10000.01,0.000148,2]
[392830174,1762012696788,-10000.01,0.000148,2]
[392830175,1762012696961,-10000.01,0.000148,2]
[392830176,1762012697090,-10000.01,0.000148,2]
[392830177,1762012697224,5888.7929,0.00013928,2]
[392830178,1762012697249,550.9071,0.00013928,2]
[392830179,1762012697293,-3560.31,0.000148,2]
[392830180,1762012699052,-852.18154839,0.000148,2]
[392830181,1762012699076,-8295.64690322,0.000148,2]
[392830182,1762012699241,-3071.39955261,0.00014805,2]
[392830183,1762012699277,-3857.21089478,0.00014813,2]
[392830184,1762012704501,500.0,0.00031232,120]
[392830185,1762012704744,500.0,0.00031506,120]
[392830186,1762012732328,166.66666666,0.00014721,2]
[392830187,1762012824883,221.6410156,0.00014545,2]
[392830188,1762012825762,-500.0,0.00014799,2]
[392830189,1762012826736,893.09678367,0.00014681,2]
[392830190,1762012840964,-195.0,0.000148,2]
[392830191,1762012851482,5487.0,0.00014438,2]
[392830192,1762012881318,1500.0,0.00013916,2]
[392830193,1762012911786,600.0,0.00014795,2]
[392830194,1762012912057,600.0,0.00014795,2]
[392830195,1762012912493,600.0,0.00014795,2]
[392830196,1762012912767,600.0,0.00014795,2]
[392830197,1762012913053,600.0,0.00014795,2]
[392830198,1762012913407,600.0,0.00014795,2]
[392830199,1762012913743,600.0,0.00014795,2]
[392830200,1762012914037,600.0,0.00014795,2]
[392830201,1762012918613,-3074.69214527,0.000148,2]
[392830202,1762012919033,-782.23124353,0.00014801,2]
[392830203,1762012919082,-10000.01,0.00014801,2]
[392830204,1762012919300,-10000.01,0.00014801,2]
[392830205,1762012919667,-10000.01,0.00014801,2]
[392830206,1762012919704,-10000.01,0.00014801,2]
[392830207,1762012919733,-10000.01,0.00014801,2]
[392830208,1762012919861,-10000.01,0.00014801,2]
[392830209,1762012919989,-10000.01,0.00014801,2]
[392830210,1762012920136,-10000.01,0.00014801,2]
[392830211,1762012923656,-300.0,0.000148,2]
[392830212,1762012923698,-9400.01,0.00014801,2]
[392830213,1762012929558,-10000.01,0.00014801,2]
[392830214,1762012929686,-4288.06660403,0.00014801,2]
[392830215,1762012929717,-1423.87679194,0.00014801,2]
[392830216,1762012944748,2423.59891201,0.000148,2]
[392830217,1762012982296,4223.09992207,0.000148,2]
[392830218,1762013013609,1425.0,0.00014792,2]
[392830219,1762013057488,194.0,0.00014757,2]
[392830220,1762013062655,168.0,0.00014605,2]
[392830221,1762013073344,745.4390193,0.00014766,2]
[392830222,1762013077069,167.38203102,0.00014713,2]
[392830223,1762013083157,167.38203101,0.00014791,2]
[392830224,1762013109125,150.0,0.00013488,2]
[392830225,1762013109201,150.0,0.00013737,2]
[392830226,1762013109256,150.0,0.00013987,2]
[392830227,1762013109328,36.10808459,0.00014237,2]
[392830228,1762013109355,113.89191541,0.00014237,2]
[392830229,1762013109404,150.0,0.00014487,2]
[392830230,1762013109480,150.0,0.00014737,2]
[392830231,1762013109686,150.0,0.00013488,2]
[392830232,1762013109757,150.0,0.00013571,2]
[392830233,1762013109830,150.0,0.00013654,2]
[392830234,1762013109891,150.0,0.00013737,2]
[392830235,1762013109967,150.0,0.00013821,2]
[392830236,1762013110038,150.0,0.00013904,2]
[392830237,1762013110101,150.0,0.00013987,2]
[392830238,1762013110178,150.0,0.0001407,2]
[392830239,1762013110252,150.0,0.00014154,2]
[392830240,1762013110314,150.0,0.00014237,2]
[392830241,1762013110605,150.0,0.0001432,2]
[392830242,1762013110654,150.0,0.00014404,2]
[392830243,1762013110704,150.0,0.00014487,2]
[392830244,1762013110750,150.0,0.0001457,2]
[392830245,1762013110801,150.0,0.00014653,2]
[392830246,1762013110857,150.0,0.00014737,2]
[392830247,1762013111009,150.0,0.00013488,2]
[392830248,1762013111082,150.0,0.00013737,2]
[392830249,1762013111156,150.0,0.00013987,2]
[392830250,1762013111516,150.0,0.00014237,2]
[392830251,1762013111558,179.01924798,0.00013488,2]
[392830252,1762013111599,150.0,0.00014487,2]
[392830253,1762013111668,150.0,0.00014737,2]
[392830254,1762013115318,150.0,0.00013488,2]
[392830255,1762013115385,150.0,0.00013638,2]
[392830256,1762013115454,150.0,0.00013787,2]
[392830257,1762013115539,150.0,0.00013937,2]
[392830258,1762013115605,150.0,0.00014087,2]
[392830259,1762013115680,150.0,0.00014237,2]
[392830260,1762013115757,150.0,0.00014387,2]